fUSD/lending_fUSD_20241220
["ID","MTS","AMOUNT","RATE_DAILY","PERIOD"]
[346118721,1734714653029,-500.0,0.00023546,4]
[346118722,1734714653043,-500.0,0.00023546,4]
[346118723,1734714653052,-344.34,0.00023546,4]
[346118724,1734714653062,-557.79306607,0.00023546,4]
[346118725,1734714653071,-294.86,0.00023546,4]
[346118726,1734714653081,-500.0,0.00023546,4]
[346118727,1734714653091,-500.0,0.00023546,4]
[346118728,1734714653100,-500.0,0.00023546,4]
[346118729,1734714653110,-166.98,0.00023546,4]
[346118730,1734714653119,-500.0,0.00023546,4]
[346118731,1734714653129,-500.0,0.00023546,4]
[346118732,1734714653138,-817.64,0.00023546,4]
[346118733,1734714653148,-500.0,0.00023546,4]
[346118734,1734714653158,-500.0,0.00023546,4]
[346118735,1734714653168,-500.0,0.00023546,4]
[346118736,1734714653178,-232.1389932,0.00023546,4]
[346118737,1734714653192,-502.431614,0.00023546,4]
[346118738,1734714653201,-500.0,0.00023546,4]
[346118739,1734714653211,-500.0,0.00023546,4]
[346118740,1734714653220,-500.0,0.00023546,4]
[346118741,1734714653231,-500.0,0.00023546,4]
[346118742,1734714653240,-500.0,0.00023546,4]
[346118743,1734714653249,-195.76,0.00023546,4]
[346118744,1734714653259,-211.86,0.00023546,4]
[346118745,1734714653270,-500.0,0.00023546,4]
[346118746,1734714653280,-500.0,0.00023546,4]
[346118747,1734714653294,-500.0,0.00023546,4]
[346118748,1734714653304,-500.0,0.00023546,4]
[346118749,1734714653313,-500.0,0.00023546,4]
[346118750,1734714653324,-497.27,0.00023546,4]
[346118751,1734714653334,-500.0,0.00023546,4]
[346118752,1734714653344,-500.0,0.00023546,4]
[346118753,1734714653355,-572.64199033,0.00023546,4]
[346118754,1734714653365,-500.0,0.00023546,4]
[346118755,1734714653375,-500.0,0.00023546,4]
[346118756,1734714653385,-500.0,0.00023546,4]
[346118757,1734714653395,-635.76,0.00023546,4]
[346118758,1734714653405,-500.0,0.00023546,4]
[346118759,1734714653415,-500.0,0.00023546,4]
[346118760,1734714653425,-500.0,0.00023546,4]
[346118761,1734714653434,-500.0,0.00023546,4]
[346118762,1734714653444,-500.0,0.00023546,4]
[346118763,1734714653454,-500.0,0.00023546,4]
[346118764,1734714653463,-500.0,0.00023546,4]
[346118765,1734714653473,-500.0,0.00023546,4]
[346118766,1734714653483,-500.0,0.00023546,4]
[346118767,1734714653493,-500.0,0.00023546,4]
[346118768,1734714653503,-548.51,0.00023546,4]
[346118769,1734714653513,-500.0,0.00023546,4]
[346118770,1734714653522,-644.51,0.00023546,4]
[346118771,1734714653531,-500.0,0.00023546,4]
[346118772,1734714653542,-500.0,0.00023546,4]
[346118773,1734714653552,-500.0,0.00023546,4]
[346118774,1734714653562,-500.0,0.00023546,4]
[346118775,1734714653571,-500.0,0.00023546,4]
[346118776,1734714653580,-500.0,0.00023546,4]
[346118777,1734714653591,-500.0,0.00023546,4]
[346118778,1734714653601,-732.17,0.00023546,4]
[346118779,1734714653611,-500.0,0.00023546,4]
[346118780,1734714653621,-500.0,0.00023546,4]
[346118781,1734714653630,-500.0,0.00023546,4]
[346118782,1734714653640,-806.01,0.00023546,4]
[346118783,1734714653649,-500.0,0.00023546,4]
[346118784,1734714653659,-500.0,0.00023546,4]
[346118785,1734714653668,-500.0,0.00023546,4]
[346118786,1734714653677,-500.0,0.00023546,4]
[346118787,1734714653687,-500.0,0.00023546,4]
[346118788,1734714653697,-500.0,0.00023546,4]
[346118789,1734714653707,-500.0,0.00023546,4]
[346118790,1734714653716,-500.0,0.00023546,4]
[346118791,1734714653726,-646.16,0.00023546,4]
[346118792,1734714653735,-500.0,0.00023546,4]
[346118793,1734714653745,-1060.08,0.00023546,4]
[346118794,1734714653754,-500.0,0.00023546,4]
[346118795,1734714653764,-584.77,0.00023546,4]
[346118796,1734714653774,-500.0,0.00023546,4]
[346118797,1734714653783,-500.0,0.00023546,4]
[346118798,1734714653795,-500.0,0.00023546,4]
[346118799,1734714653805,-500.0,0.00023546,4]
[346118800,1734714653814,-500.0,0.00023546,4]
[346118801,1734714653824,-500.0,0.00023546,4]
[346118802,1734714653834,-500.0,0.00023546,4]
[346118803,1734714653843,-500.0,0.00023546,4]
[346118804,1734714653852,-500.0,0.00023546,4]
[346118805,1734714653862,-667.56,0.00023546,4]
[346118806,1734714653871,-715.42,0.00023546,4]
[346118807,1734714653881,-500.0,0.00023546,4]
[346118808,1734714653890,-500.0,0.00023546,4]
[346118809,1734714653899,-538.83,0.00023546,4]
[346118810,1734714653909,-500.0,0.00023546,4]
[346118811,1734714653919,-500.0,0.00023546,4]
[346118812,1734714653928,-500.0,0.00023546,4]
[346118813,1734714653938,-500.0,0.00023546,4]
[346118814,1734714653947,-952.67,0.00023546,4]
[346118815,1734714653957,-500.0,0.00023546,4]
[346118816,1734714653967,-720.77,0.00023546,4]
[346118817,1734714653976,-500.0,0.00023546,4]
[346118818,1734714653986,-500.0,0.00023546,4]
[346118819,1734714653995,-500.0,0.00023546,4]
[346118820,1734714654005,-1432.44,0.00023546,4]
[346118821,1734714654014,-500.0,0.00023546,4]
[346118822,1734714654024,-500.0,0.00023546,4]
[346118823,1734714654033,-500.0,0.00023547,4]
[346118824,1734714654044,-500.0,0.00023547,4]
[346118825,1734714654054,-500.0,0.00023547,4]
[346118826,1734714654064,-326.521,0.00023547,4]
[346118827,1734714654074,-620.33,0.00023547,4]
[346118828,1734714654084,-500.0,0.00023547,4]
[346118829,1734714654094,-500.0,0.00023547,4]
[346118830,1734714654103,-500.0,0.00023547,4]
[346118831,1734714654113,-500.0,0.00023547,4]
[346118832,1734714654123,-527.20750504,0.00023547,4]
[346118833,1734714654133,-500.0,0.00023547,4]
[346118834,1734714654143,-500.0,0.00023547,4]
[346118835,1734714654153,-500.0,0.00023547,4]
[346118836,1734714654162,-500.0,0.00023547,4]
[346118837,1734714654172,-500.0,0.00023547,4]
[346118838,1734714654183,-534.84,0.00023547,4]
[346118839,1734714654196,-371.48,0.00023547,4]
[346118840,1734714654206,-500.0,0.00023547,4]
[346118841,1734714654215,-530.51,0.00023547,4]
[346118842,1734714654226,-500.0,0.00023547,4]
[346118843,1734714654237,-606.22,0.00023547,4]
[346118844,1734714654246,-571.28,0.00023547,4]
[346118845,1734714654255,-500.0,0.00023547,4]
[346118846,1734714654265,-347.22,0.00023547,4]
[346118847,1734714654276,-287.69,0.00023547,4]
[346118848,1734714654287,-500.0,0.00023547,4]
[346118849,1734714654298,-471.34,0.00023547,4]
[346118850,1734714654309,-500.0,0.00023547,4]
[346118851,1734714654319,-500.0,0.00023547,4]
[346118852,1734714654329,-500.0,0.00023547,4]
[346118853,1734714654339,-500.0,0.00023547,4]
[346118854,1734714654350,-500.0,0.00023547,4]
[346118855,1734714654358,-207.43,0.00023547,4]
[346118856,1734714654369,-500.0,0.00023547,4]
[346118857,1734714654378,-220.89,0.00023547,4]
[346118858,1734714654388,-393.69,0.00023547,4]
[346118859,1734714654398,-500.0,0.00023547,4]
[346118860,1734714654408,-500.0,0.00023559,4]
[346118861,1734714654417,-500.0,0.00023559,4]
[346118862,1734714654427,-500.0,0.00023559,4]
[346118863,1734714654437,-500.0,0.00023559,4]
[346118864,1734714654446,-500.0,0.00023559,4]
[346118865,1734714654456,-500.0,0.00023559,4]
[346118866,1734714654466,-500.0,0.00023559,4]
[346118867,1734714654477,-500.0,0.00023559,4]
[346118868,1734714654487,-500.0,0.00023559,4]
[346118869,1734714654497,-500.0,0.00023559,4]
[346118870,1734714654507,-2325.98,0.00023559,4]
[346118871,1734714654517,-500.0,0.00023559,4]
[346118872,1734714654527,-500.0,0.00023559,4]
[346118873,1734714654541,-500.0,0.00023559,4]
[346118874,1734714654551,-500.0,0.00023559,4]
[346118875,1734714654561,-500.0,0.00023559,4]
[346118876,1734714654571,-1000.0,0.00023559,4]
[346118877,1734714654581,-275.08907137,0.00023559,4]
[346118878,1734714654591,-500.0,0.00023559,4]
[346118879,1734714654601,-709.12,0.00023559,4]
[346118880,1734714654611,-500.0,0.00023559,4]
[346118881,1734714654621,-600.0,0.000236,8]
[346118882,1734714654630,-159.54184412,0.0002365,2]
[346118883,1734714654640,-2483.1575254,0.00023656,2]
[346118884,1734714654650,-859.04,0.00023689,7]
[346118885,1734714654660,-859.04,0.00023689,7]
[346118886,1734714654670,-600.0,0.000237,8]
[346118887,1734714654680,-150.0,0.00023715,2]
[346118888,1734714654690,-976.77,0.00023715,2]
[346118889,1734714654700,-976.77,0.00023715,2]
[346118890,1734714654710,-976.77,0.00023715,2]
[346118891,1734714654720,-976.77,0.00023715,2]
[346118892,1734714654730,-976.77,0.00023715,2]
[346118893,1734714654740,-791.65,0.00023715,2]
[346118894,1734714654750,-500.0,0.0002372,4]
[346118895,1734714654760,-500.0,0.0002372,4]
[346118896,1734714654770,-500.0,0.0002372,4]
[346118897,1734714654780,-934.19,0.0002372,4]
[346118898,1734714654793,-500.0,0.0002372,4]
[346118899,1734714654803,-524.95,0.0002372,4]
[346118900,1734714654812,-500.0,0.0002372,4]
[346118901,1734714654822,-500.0,0.0002372,4]
[346118902,1734714654831,-500.0,0.0002372,4]
[346118903,1734714654841,-500.0,0.0002372,4]
[346118904,1734714654851,-1638.92,0.0002372,4]
[346118905,1734714654861,-908.13,0.0002372,4]
[346118906,1734714654870,-500.0,0.0002372,4]
[346118907,1734714654880,-2030.13,0.0002372,4]
[346118908,1734714654890,-1531.71,0.0002372,4]
[346118909,1734714654899,-2239.92,0.0002372,4]
[346118910,1734714654909,-500.0,0.0002372,4]
[346118911,1734714654918,-500.0,0.0002372,4]
[346118912,1734714654928,-500.0,0.0002372,4]
[346118913,1734714654937,-500.0,0.0002372,4]
[346118914,1734714654947,-500.0,0.0002372,4]
[346118915,1734714654956,-500.0,0.0002372,4]
[346118916,1734714654966,-500.0,0.0002372,4]
[346118917,1734714654975,-500.0,0.0002372,4]
[346118918,1734714654985,-500.0,0.00023721,4]
[346118919,1734714654994,-500.0,0.00023721,4]
[346118920,1734714655004,-500.0,0.00023721,4]
[346118921,1734714655014,-427.72395191,0.00023721,4]
[346118922,1734714655023,-500.0,0.00023721,4]
[346118923,1734714655034,-500.0,0.00023721,4]
[346118924,1734714655044,-12848.10011165,0.00023758,3]
[346118925,1734714655054,-500.0,0.00023773,4]
[346118926,1734714655064,-500.0,0.00023773,4]
[346118927,1734714655073,-500.0,0.00023773,4]
[346118928,1734714655083,-500.0,0.00023773,4]
[346118929,1734714655128,-500.0,0.00023773,4]
[346118930,1734714655138,-606.81,0.00023773,4]
[346118931,1734714655147,-500.0,0.00023773,4]
[346118932,1734714655157,-500.0,0.00023773,4]
[346118933,1734714655166,-742.73,0.00023773,4]
[346118934,1734714655177,-986.82,0.00023773,4]
[346118935,1734714655190,-500.0,0.00023773,4]
[346118936,1734714655199,-500.0,0.00023773,4]
[346118937,1734714655208,-3303.27,0.00023773,4]
[346118938,1734714655218,-500.0,0.00023773,4]
[346118939,1734714655229,-500.0,0.00023773,4]
[346118940,1734714655239,-500.0,0.00023773,4]
[346118941,1734714655249,-500.0,0.00023773,4]
[346118942,1734714655260,-505.1,0.00023773,4]
[346118943,1734714655270,-500.0,0.00023773,4]
[346118944,1734714655280,-500.0,0.00023773,4]
[346118945,1734714655292,-572.33,0.00023773,4]
[346118946,1734714655301,-602.54324289,0.00023773,4]
[346118947,1734714655311,-500.0,0.00023773,4]
[346118948,1734714655320,-500.0,0.00023773,4]
[346118949,1734714655330,-500.0,0.00023773,4]
[346118950,1734714655340,-500.0,0.00023773,4]
[346118951,1734714655350,-163.125633,0.00023773,4]
[346118952,1734714655360,-153.0,0.00023774,2]
[346118953,1734714655370,-181.63,0.00023774,2]
[346118954,1734714655379,-150.0,0.00023774,2]
[346118955,1734714655388,-2483.1575254,0.00023778,2]
[346118956,1734714655398,-408.21823232,0.0002379,2]
[346118957,1734714655409,-981.2,0.00023799,2]
[346118958,1734714655418,-615.0,0.000238,8]
[346118959,1734714655428,-500.0,0.00023808,2]
[346118960,1734714655438,-1000.0,0.00023813,2]
[346118961,1734714655448,-500.0,0.0002382,4]
[346118962,1734714655459,-500.0,0.0002382,4]
[346118963,1734714655469,-500.0,0.0002382,4]
[346118964,1734714655478,-500.0,0.0002382,4]
[346118965,1734714655488,-260.38,0.0002382,4]
[346118966,1734714655497,-337.1486334,0.0002382,4]
[346118967,1734714655507,-500.0,0.0002382,4]
[346118968,1734714655517,-500.0,0.0002382,4]
[346118969,1734714655526,-500.0,0.0002382,4]
[346118970,1734714655535,-500.0,0.0002382,4]
[346118971,1734714655547,-817.64,0.0002382,4]
[346118972,1734714655557,-500.0,0.0002382,4]
[346118973,1734714655567,-500.0,0.0002382,4]
[346118974,1734714655576,-500.0,0.0002382,4]
[346118975,1734714655586,-500.0,0.0002382,4]
[346118976,1734714655596,-500.0,0.0002382,4]
[346118977,1734714655605,-500.0,0.0002382,4]
[346118978,1734714655615,-500.0,0.0002382,4]
[346118979,1734714655624,-500.0,0.0002382,4]
[346118980,1734714655634,-590.65550489,0.0002382,4]
[346118981,1734714655643,-500.0,0.0002382,4]
[346118982,1734714655652,-500.0,0.0002382,4]
[346118983,1734714655661,-500.0,0.0002382,4]
[346118984,1734714655671,-500.0,0.0002382,4]
[346118985,1734714655680,-500.0,0.0002382,4]
[346118986,1734714655690,-500.0,0.0002382,4]
[346118987,1734714655699,-500.0,0.0002382,4]
[346118988,1734714655709,-500.0,0.0002382,4]
[346118989,1734714655718,-500.0,0.0002382,4]
[346118990,1734714655727,-392.93,0.0002382,4]
[346118991,1734714655737,-500.0,0.0002382,4]
[346118992,1734714655747,-500.0,0.0002382,4]
[346118993,1734714655756,-500.0,0.0002382,4]
[346118994,1734714655766,-548.51,0.0002382,4]
[346118995,1734714655775,-500.0,0.0002382,4]
[346118996,1734714655785,-500.0,0.0002382,4]
[346118997,1734714655798,-500.0,0.0002382,4]
[346118998,1734714655807,-500.0,0.0002382,4]
[346118999,1734714655817,-500.0,0.0002382,4]
[346119000,1734714655826,-466.87844168,0.0002382,4]
[346119001,1734714655836,-500.0,0.0002382,4]
[346119002,1734714655845,-732.17,0.0002382,4]
[346119003,1734714655855,-500.0,0.0002382,4]
[346119004,1734714655864,-500.0,0.0002382,4]
[346119005,1734714655874,-500.0,0.0002382,4]
[346119006,1734714655883,-806.01,0.0002382,4]
[346119007,1734714655892,-500.0,0.0002382,4]
[346119008,1734714655902,-500.0,0.0002382,4]
[346119009,1734714655911,-500.0,0.0002382,4]
[346119010,1734714655921,-500.0,0.0002382,4]
[346119011,1734714655930,-1060.08,0.0002382,4]
[346119012,1734714655939,-500.0,0.0002382,4]
[346119013,1734714655948,-500.0,0.0002382,4]
[346119014,1734714655958,-500.0,0.0002382,4]
[346119015,1734714655968,-500.0,0.0002382,4]
[346119016,1734714655977,-500.0,0.0002382,4]
[346119017,1734714655987,-500.0,0.0002382,4]
[346119018,1734714655996,-500.0,0.0002382,4]
[346119019,1734714656006,-500.0,0.0002382,4]
[346119020,1734714656015,-667.56,0.0002382,4]
[346119021,1734714656024,-715.42,0.0002382,4]
[346119022,1734714656034,-500.0,0.0002382,4]
[346119023,1734714656049,-609.39897224,0.0002382,4]
[346119024,1734714656059,-538.83,0.0002382,4]
[346119025,1734714656068,-500.0,0.0002382,4]
[346119026,1734714656078,-500.0,0.0002382,4]
[346119027,1734714656087,-500.0,0.0002382,4]
[346119028,1734714656097,-515.87,0.0002382,4]
[346119029,1734714656106,-952.67,0.0002382,4]
[346119030,1734714656115,-500.0,0.0002382,4]
[346119031,1734714656124,-720.77,0.0002382,4]
[346119032,1734714656134,-500.0,0.0002382,4]
[346119033,1734714656143,-500.0,0.0002382,4]
[346119034,1734714656152,-500.0,0.0002382,4]
[346119035,1734714656162,-1432.44,0.0002382,4]
[346119036,1734714656171,-561.86,0.00023821,4]
[346119037,1734714656183,-500.0,0.00023821,4]
[346119038,1734714656194,-220.78,0.00023821,4]
[346119039,1734714656203,-500.0,0.00023821,4]
[346119040,1734714656212,-417.39,0.00023821,4]
[346119041,1734714656222,-314.07,0.00023821,4]
[346119042,1734714656232,-293.7,0.00023821,4]
[346119043,1734714656241,-500.0,0.00023821,4]
[346119044,1734714656251,-387.92,0.00023821,4]
[346119045,1734714656262,-500.0,0.00023821,4]
[346119046,1734714656276,-584.98,0.00023821,4]
[346119047,1734714656285,-500.0,0.00023821,4]
[346119048,1734714656300,-500.0,0.00023821,4]
[346119049,1734714656310,-530.51,0.00023821,4]
[346119050,1734714656319,-500.0,0.00023821,4]
[346119051,1734714656329,-500.0,0.00023821,4]
[346119052,1734714656338,-500.0,0.00023821,4]
[346119053,1734714656348,-500.0,0.00023821,4]
[346119054,1734714656358,-168.1,0.00023821,4]
[346119055,1734714656367,-500.0,0.00023821,4]
[346119056,1734714656377,-500.0,0.00023821,4]
[346119057,1734714656387,-500.0,0.00023821,4]
[346119058,1734714656397,-500.0,0.00023832,4]
[346119059,1734714656407,-500.0,0.00023833,4]
[346119060,1734714656417,-500.0,0.00023833,4]
[346119061,1734714656426,-500.0,0.00023833,4]
[346119062,1734714656436,-500.0,0.00023833,4]
[346119063,1734714656446,-500.0,0.00023833,4]
[346119064,1734714656455,-500.0,0.00023833,4]
[346119065,1734714656464,-172.08,0.00023833,4]
[346119066,1734714656473,-500.0,0.00023833,4]
[346119067,1734714656483,-2325.98,0.00023833,4]
[346119068,1734714656492,-500.0,0.00023833,4]
[346119069,1734714656501,-500.0,0.00023833,4]
[346119070,1734714656510,-500.0,0.00023833,4]
[346119071,1734714656520,-500.0,0.00023833,4]
[346119072,1734714656529,-500.0,0.00023833,4]
[346119073,1734714656543,-1000.0,0.00023833,4]
[346119074,1734714656553,-500.0,0.00023833,4]
[346119075,1734714656563,-709.12,0.00023833,4]
[346119076,1734714656573,-500.0,0.00023833,4]
[346119077,1734714656583,-32484.6208503,0.0002389,2]
[346119078,1734714656594,-800.0,0.0002389,2]
[346119079,1734714656605,-800.0,0.0002389,2]
[346119080,1734714656616,-239.64671984,0.000239,2]
[346119081,1734714656626,-4173.2703326,0.000239,2]
[346119082,1734714656638,-2483.1575254,0.000239,2]
[346119083,1734714656649,-159.22060468,0.000239,2]
[346119084,1734714656660,-653.01403677,0.000239,2]
[346119085,1734714656672,-611.13619075,0.000239,2]
[346119086,1734714656682,-209.48478231,0.000239,4]
[346119087,1734714656693,-159.54184412,0.000239,2]
[346119088,1734714656703,-225.45,0.00023906,2]
[346119089,1734714656713,-150.0,0.00023933,2]
[346119090,1734714656722,-859.04,0.00023962,7]
[346119091,1734714656731,-859.04,0.00023962,7]
[346119092,1734714656740,-602.07030659,0.0002397,2]
[346119093,1734714656749,-13318.0,0.00023973,2]
[346119094,1734714656758,-2095.0,0.00023973,2]
[346119095,1734714656768,-30000.0,0.00023985,2]
[346119096,1734714656778,-30000.0,0.00023985,2]
[346119097,1734714656787,-30000.0,0.00023985,2]
[346119098,1734714656810,-30000.0,0.00023985,2]
[346119099,1734714656820,-30000.0,0.00023985,2]
[346119100,1734714656830,-30000.0,0.00023985,2]
[346119101,1734714656839,-30000.0,0.00023985,2]
[346119102,1734714656848,-30000.0,0.00023985,2]
[346119103,1734714656857,-30000.0,0.00023985,2]
[346119104,1734714656867,-30000.0,0.00023985,2]
[346119105,1734714656876,-4059.98520172,0.00023985,2]
[346119106,1734714656886,-1407.06,0.0002399,7]
[346119107,1734714656895,-500.0,0.00023994,4]
[346119108,1734714656905,-500.0,0.00023994,4]
[346119109,1734714656915,-545.82404395,0.00023994,4]
[346119110,1734714656925,-934.19,0.00023994,4]
[346119111,1734714656935,-500.0,0.00023994,4]
[346119112,1734714656944,-524.95,0.00023994,4]
[346119113,1734714656954,-500.0,0.00023994,4]
[346119114,1734714656964,-500.0,0.00023994,4]
[346119115,1734714656974,-500.0,0.00023994,4]
[346119116,1734714656984,-500.0,0.00023994,4]
[346119117,1734714656993,-1638.92,0.00023994,4]
[346119118,1734714657002,-908.13,0.00023994,4]
[346119119,1734714657011,-500.0,0.00023994,4]
[346119120,1734714657021,-2030.13,0.00023994,4]
[346119121,1734714657028,-1531.71,0.00023994,4]
[346119122,1734714657037,-2239.92,0.00023994,4]
[346119123,1734714657055,-500.0,0.00023994,4]
[346119124,1734714657064,-500.0,0.00023994,4]
[346119125,1734714657074,-500.0,0.00023994,4]
[346119126,1734714657083,-500.0,0.00023994,4]
[346119127,1734714657092,-500.0,0.00023994,4]
[346119128,1734714657101,-500.0,0.00023994,4]
[346119129,1734714657110,-500.0,0.00023994,4]
[346119130,1734714657120,-500.0,0.00023994,4]
[346119131,1734714657129,-500.0,0.00023995,4]
[346119132,1734714657139,-271.09,0.00023995,4]
[346119133,1734714657148,-154.63,0.00023995,4]
[346119134,1734714657158,-433.98342619,0.00023995,4]
[346119135,1734714657167,-3000.0,0.00023998,2]
[346119136,1734714657177,-151.0,0.00023999,7]
[346119137,1734714657189,-151.0,0.00023999,7]
[346119138,1734714657198,-227.589595,0.00023999,7]
[346119139,1734714657208,-216.17,0.00023999,2]
[346119140,1734714657219,-620.62,0.00023999,2]
[346119141,1734714657228,-620.62,0.00023999,2]
[346119142,1734714657238,-620.62,0.00023999,2]
[346119143,1734714657247,-620.62,0.00023999,2]
[346119144,1734714657257,-620.62,0.00023999,2]
[346119145,1734714657266,-620.62,0.00023999,2]
[346119146,1734714657275,-620.62,0.00023999,2]
[346119147,1734714657284,-620.62,0.00023999,2]
[346119148,1734714657297,-620.62,0.00023999,2]
[346119149,1734714657307,-620.62,0.00023999,2]
[346119150,1734714657316,-620.62,0.00023999,2]
[346119151,1734714657326,-620.62,0.00023999,2]
[346119152,1734714657336,-620.62,0.00023999,2]
[346119153,1734714657346,-620.62,0.00023999,2]
[346119154,1734714657355,-620.62,0.00023999,2]
[346119155,1734714657364,-620.62,0.00023999,2]
[346119156,1734714657374,-620.62,0.00023999,2]
[346119157,1734714657383,-620.62,0.00023999,2]
[346119158,1734714657393,-620.62,0.00023999,2]
[346119159,1734714657402,-620.62,0.00023999,2]
[346119160,1734714657412,-620.62,0.00023999,2]
[346119161,1734714657421,-620.62,0.00023999,2]
[346119162,1734714657431,-620.62,0.00023999,2]
[346119163,1734714657440,-620.77822716,0.00023999,2]
[346119164,1734714657449,-500.0,0.00023999,4]
[346119165,1734714657458,-1236378.24508053,0.00024,3]
[346119166,1734714657468,-1683.89655187,0.00024,2]
[346119167,1734714657477,-38849.53164611,0.00024,3]
[346119168,1734714657486,-1023216.29086479,0.00024,5]
[346119169,1734714657687,-85194.36325163,0.00024,5]
[346119170,1734714734969,4000.0,0.000225,30]
[346119171,1734715313488,156.61,0.00021356,30]
[346119173,1734715464691,178.94,0.00010137,2]
[346119174,1734715472995,10973.7177287,0.000235,120]
[346119176,1734715503839,5553.89746327,0.000235,120]
[346119207,1734715832004,-2221.0,0.00012488,2]
[346119209,1734715832014,-2016.39069681,0.00013,2]
[346119210,1734715832065,-765.0999996,0.00013,2]
[346119211,1734715832076,-836.0,0.00013,2]
[346119212,1734715832126,-3086.30673023,0.00013,2]
[346119213,1734715832190,-810.97479043,0.00013,2]
[346119214,1734715832233,-1146.38531146,0.00013,2]
[346119215,1734715832434,-71526.31469639,0.00013,2]
[346119264,1734715838343,-156.51786678,0.000129,2]
[346119265,1734715838353,-328.46713322,0.0001299,2]
[346119268,1734715840159,-62.10664544,0.0001299,2]
[346119269,1734715840168,-433.07208783,0.00013,2]
[346119282,1734715843144,-14801.24161311,0.00013,2]
[346119283,1734715843155,-76824.04537879,0.00013,2]
[346119284,1734715843165,-919.97299999,0.00013,2]
[346119285,1734715843176,-79197.71002478,0.00013,2]
[346119286,1734715843187,-913.07358999,0.00013,2]
[346119296,1734715846042,-334857.78150474,0.00013,2]
[346119297,1734715846052,-92336.6460002,0.00013,2]
[346119298,1734715846061,-4635.82455334,0.000157,2]
[346119299,1734715846158,-2572.40955001,0.000157,2]
[346119300,1734715846219,-22787.37970422,0.000157,2]
[346119304,1734716215845,156.61,0.00019268,30]
[346119305,1734716548998,315.18,0.00010137,2]
[346119337,1734717032538,-450.0,0.00013,2]
[346119338,1734717032548,-500.0,0.00015,2]
[346119339,1734717032558,-28561.73349711,0.000157,2]
[346119340,1734717032567,-3000.0,0.000157,2]
[346119341,1734717032576,-915.75,0.00016615,2]
[346119342,1734717032585,-150.0,0.00016795,2]
[346119343,1734717032595,-178.94,0.00016813,2]
[346119344,1734717032605,-315.18,0.00016813,2]
[346119345,1734717032617,-550.0,0.00017,2]
[346119346,1734717032627,-250.0,0.00018254,2]
[346119347,1734717032636,-783.1,0.00018355,2]
[346119348,1734717032646,-329.9,0.0001841,2]
[346119349,1734717032655,-250.0,0.00018542,2]
[346119350,1734717032664,-1116.54,0.00018558,2]
[346119351,1734717032674,-500.0,0.00018561,2]
[346119352,1734717032683,-1000.0,0.00018616,2]
[346119353,1734717032692,-250.0,0.00018638,2]
[346119354,1734717032702,-163.44,0.00018864,2]
[346119355,1734717032711,-1000.0,0.00018878,2]
[346119357,1734717032720,-915.75,0.00018879,2]
[346119359,1734717032729,-224.0,0.00018946,2]
[346119361,1734717032739,-498.16,0.00018996,2]